fUSD/lending_fUSD_20241027
["ID","MTS","AMOUNT","RATE_DAILY","PERIOD"]
[340878250,1729997440531,-920.69881979,0.0004059,2]
[340878252,1729997440542,-6624.59005202,0.0004059,2]
[340878254,1729997440553,-11737.56128659,0.0004059,2]
[340878256,1729997440563,-7149.812,0.0004059,2]
[340878258,1729997440574,-1886.52,0.0004059,2]
[340878260,1729997440586,-195.79046232,0.0004059,2]
[340878262,1729997440596,-211.9536,0.0004059,2]
[340878264,1729997440605,-677.39690646,0.0004059,2]
[340878267,1729997440616,-978.94957228,0.0004059,2]
[340878324,1729997443056,-5388.63959752,0.00039842,2]
[340878325,1729997443069,-1711.80000004,0.00039842,2]
[340878334,1729997445859,-1346.45,0.00039842,2]
[340878335,1729997446070,-15453.11040244,0.00039842,2]
[340878336,1729997446080,-835.54122126,0.0004059,2]
[340878337,1729997446091,-1000.0,0.0004059,2]
[340878338,1729997446101,-151.64314285,0.000406,28]
[340878339,1729997446111,-508.83552593,0.00040673,2]
[340878340,1729997446120,-154.934447,0.0004068,14]
[340878341,1729997446129,-35945.4821218,0.0004068,9]
[340878342,1729997446139,-698.76,0.0004068,2]
[340878343,1729997446148,-698.76,0.0004068,2]
[340878344,1729997446157,-698.76,0.0004068,2]
[340878345,1729997446167,-500.0,0.00040689,31]
[340878346,1729997446176,-430.72249306,0.00040689,31]
[340878347,1729997446186,-237.40869069,0.00040689,31]
[340878348,1729997446195,-151.0,0.0004069,14]
[340878349,1729997446205,-151.0,0.0004069,14]
[340878350,1729997446214,-213.78443,0.0004069,14]
[340878351,1729997446223,-213.78443,0.0004069,14]
[340878352,1729997446233,-151.0,0.0004069,14]
[340878353,1729997446242,-211.916795,0.0004069,14]
[340878354,1729997446252,-151.0,0.0004069,14]
[340878355,1729997446261,-138.32841316,0.0004069,14]
[340878357,1729997986937,250.0,0.00015,2]
[340878366,1729998638370,-160.31,0.00015342,2]
[340878367,1729998638380,-300.0,0.00017,2]
[340878368,1729998638390,-365.0,0.000184,2]
[340878369,1729998638400,-337.3,0.00037588,2]
[340878370,1729998638410,-200.0,0.00039429,2]
[340878371,1729998638420,-206.87,0.00039436,120]
[340878372,1729998638430,-150.0,0.00039471,7]
[340878373,1729998638440,-250.0,0.00039542,120]
[340878374,1729998638449,-800.0,0.00039604,2]
[340878375,1729998638459,-11124.17957878,0.00039637,2]
[340878376,1729998638471,-12775.82042122,0.00039637,2]
[340878377,1729998638481,-337.3,0.00039852,2]
[340878378,1729998638491,-9916.0,0.0004,40]
[340878379,1729998638501,-1000.89007812,0.000404,2]
[340878380,1729998638511,-150.0,0.00040489,4]
[340878381,1729998638521,-2004.75520952,0.0004049,15]
[340878382,1729998638531,-1000.89007813,0.0004049,2]
[340878383,1729998638541,-279.2648,0.0004049,2]
[340878384,1729998638551,-151.64314283,0.000405,28]
[340878385,1729998638560,-181.02552319,0.00040573,58]
[340878386,1729998638570,-502.61796476,0.00040573,5]
[340878387,1729998638580,-500.0,0.00040573,5]
[340878388,1729998638589,-729.684,0.00040573,58]
[340878389,1729998638599,-2395.30998223,0.0004058,9]
[340878390,1729998638611,-13565.0,0.0004058,9]
[340878391,1729998638623,-24528.90035,0.0004058,9]
[340878392,1729998638635,-3409.72616707,0.0004058,9]
[340878393,1729998638644,-279.51,0.0004058,2]
[340878394,1729998638654,-279.51,0.0004058,2]
[340878395,1729998638664,-279.51,0.0004058,2]
[340878396,1729998638679,-279.51,0.0004058,2]
[340878397,1729998638689,-151.0,0.0004059,14]
[340878398,1729998638698,-151.0,0.0004059,14]
[340878399,1729998638708,-151.0,0.0004059,14]
[340878400,1729998638719,-151.0,0.0004059,14]
[340878401,1729998638728,-157.461024,0.0004059,14]
[340878402,1729998638737,-157.461024,0.0004059,14]
[340878403,1729998638746,-152.50763,0.0004059,14]
[340878404,1729998638756,-320.349518,0.0004059,14]
[340878405,1729998638765,-152.319061,0.0004059,14]
[340878406,1729998638775,-151.0,0.0004059,14]
[340878407,1729998638784,-151.0,0.0004059,14]
[340878408,1729998638794,-151.0,0.0004059,14]
[340878409,1729998638803,-151.0,0.0004059,14]
[340878410,1729998638813,-151.0,0.0004059,14]
[340878411,1729998638822,-192.405987,0.0004059,14]
[340878412,1729998638832,-156.634457,0.0004059,14]
[340878413,1729998638842,-192.405987,0.0004059,14]
[340878414,1729998638851,-151.0,0.0004059,14]
[340878415,1729998638861,-168.143971,0.0004059,14]
[340878416,1729998638873,-383.702268,0.0004059,14]
[340878417,1729998638883,-153.139823,0.0004059,14]
[340878418,1729998638892,-383.702268,0.0004059,14]
[340878419,1729998638903,-151.0,0.0004059,14]
[340878420,1729998638913,-151.0,0.0004059,14]
[340878421,1729998638923,-157.791506,0.0004059,14]
[340878423,1729998638932,-724.394259,0.0004059,14]
[340878424,1729998638943,-164.080655,0.0004059,14]
[340878426,1729998638954,-724.394259,0.0004059,14]
[340878428,1729998638964,-153.405433,0.0004059,14]
[340878430,1729998638973,-151.0,0.0004059,14]
[340878432,1729998638983,-151.0,0.0004059,14]
[340878434,1729998638992,-151.0,0.0004059,14]
[340878435,1729998639002,-151.0,0.0004059,14]
[340878437,1729998639011,-151.0,0.0004059,14]
[340878439,1729998639021,-156.218063,0.0004059,14]
[340878441,1729998639031,-151.0,0.0004059,14]
[340878443,1729998639040,-151.0,0.0004059,14]
[340878445,1729998639050,-151.0,0.0004059,14]
[340878446,1729998639059,-151.0,0.0004059,14]
[340878448,1729998639070,-151.0,0.0004059,14]
[340878450,1729998639079,-151.0,0.0004059,14]
[340878452,1729998639091,-151.0,0.0004059,14]
[340878454,1729998639100,-170.75982,0.0004059,14]
[340878456,1729998639109,-154.477715,0.0004059,14]
[340878458,1729998639119,-151.0,0.0004059,14]
[340878460,1729998639128,-151.0,0.0004059,14]
[340878462,1729998639137,-152.252159,0.0004059,14]
[340878464,1729998639147,-153.201921,0.0004059,14]
[340878466,1729998639156,-153.358707,0.0004059,14]
[340878468,1729998639165,-151.0,0.0004059,14]
[340878469,1729998639174,-151.0,0.0004059,14]
[340878471,1729998639183,-249.822778,0.0004059,7]
[340878473,1729998639192,-249.822778,0.0004059,7]
[340878475,1729998639201,-249.822778,0.0004059,7]
[340878477,1729998639210,-4022.590555,0.0004059,14]
[340878478,1729998639219,-249.822778,0.0004059,7]
[340878480,1729998639229,-4022.590555,0.0004059,14]
[340878482,1729998639238,-151.0,0.0004059,7]
[340878484,1729998639247,-151.0,0.0004059,7]
[340878486,1729998639257,-151.0,0.0004059,14]
[340878488,1729998639266,-4022.590555,0.0004059,14]
[340878490,1729998639276,-151.0,0.0004059,14]
[340878492,1729998639285,-4022.590555,0.0004059,14]
[340878494,1729998639294,-151.0,0.0004059,14]
[340878496,1729998639303,-196.845471,0.0004059,14]
[340878498,1729998639312,-8779.78729985,0.0004059,9]
[340878500,1729998639321,-152.552929,0.0004059,14]
[340878501,1729998639331,-151.0,0.0004059,14]
[340878503,1729998639341,-151.0,0.0004059,14]
[340878505,1729998639350,-151.0,0.0004059,14]
[340878507,1729998639359,-151.0,0.0004059,14]
[340878509,1729998639369,-151.0,0.0004059,14]
[340878511,1729998639378,-151.0,0.0004059,14]
[340878512,1729998639387,-151.0,0.0004059,14]
[340878514,1729998639396,-153.372131,0.0004059,14]
[340878516,1729998639406,-151.0,0.0004059,14]
[340878518,1729998639416,-151.0,0.0004059,14]
[340878520,1729998639425,-151.0,0.0004059,14]
[340878522,1729998639437,-151.0,0.0004059,14]
[340878524,1729998639446,-151.0,0.0004059,14]
[340878526,1729998639455,-151.0,0.0004059,14]
[340878528,1729998639464,-151.0,0.0004059,14]
[340878530,1729998639475,-151.0,0.0004059,14]
[340878532,1729998639484,-151.0,0.0004059,14]
[340878534,1729998639494,-151.0,0.0004059,14]
[340878536,1729998639503,-151.0,0.0004059,14]
[340878538,1729998639512,-151.0,0.0004059,14]
[340878540,1729998639522,-300.183504,0.0004059,14]
[340878541,1729998639531,-300.183504,0.0004059,14]
[340878543,1729998639540,-307.219798,0.0004059,14]
[340878545,1729998639550,-307.219798,0.0004059,14]
[340878547,1729998639559,-300.183504,0.0004059,14]
[340878548,1729998639568,-300.183504,0.0004059,14]
[340878550,1729998639578,-151.0,0.0004059,14]
[340878552,1729998639588,-307.219798,0.0004059,14]
[340878554,1729998639597,-151.0,0.0004059,14]
[340878556,1729998639607,-151.0,0.0004059,14]
[340878558,1729998639617,-307.219798,0.0004059,14]
[340878559,1729998639626,-151.0,0.0004059,14]
[340878561,1729998639636,-6950.39194708,0.0004059,2]
[340878564,1729998639649,-9553.154996,0.0004059,2]
[340878566,1729998639660,-9084.2900005,0.0004059,2]
[340878568,1729998639671,-13724.235,0.0004059,2]
[340878570,1729998639682,-1384.75,0.0004059,2]
[340878572,1729998639693,-601.02902956,0.0004059,2]
[340878629,1729998640292,-305.0106847,0.0004059,2]
[340878651,1729998640522,-602.22,0.0004059,2]
[340878654,1729998640533,-311.69129605,0.0004059,2]
[340878674,1729998643097,-260.353008,0.0004059,14]
[340878675,1729998643107,-162.81519035,0.0004059,14]
[340878676,1729998643310,-97.53781765,0.0004059,14]
[340878677,1729998643320,-406.0409631,0.0004059,2]
[340878678,1729998643331,-2047.04614866,0.0004059,2]
[340878679,1729998643343,-2954.73832486,0.0004059,2]
[340878688,1729998646170,-151.0,0.0004059,14]
[340878689,1729998646180,-151.0,0.0004059,14]
[340878690,1729998646189,-729.90082499,0.0004059,2]
[340878691,1729998646203,-2738.61992173,0.0004059,2]
[340878692,1729998646215,-522.619975,0.0004059,2]
[340878693,1729998646226,-1346.12,0.0004059,2]
[340878768,1729999460509,363.75167451,0.00044035,30]
[340878770,1729999508464,246475.7406876,0.00015,2]
[340878774,1729999715004,1754.40940526,0.00010998,2]
[340878775,1729999790365,250.0,0.00015,2]
[340878781,1729999832303,-1131.02020119,0.00015242,2]
[340878782,1729999832312,-151.48,0.00015342,2]
[340878783,1729999832322,-159.18,0.00015342,2]
[340878785,1729999832331,-1131.02020117,0.0001643,2]
[340878787,1729999832341,-300.0,0.00017,2]
[340878789,1729999832351,-139.72329841,0.0001753,2]
[340878793,1729999832454,-342.94012959,0.0001753,2]
[340878794,1729999832463,-1131.02020117,0.00017618,2]
[340878795,1729999832472,-472.56411178,0.00017718,2]
[340878796,1729999832482,-221.0,0.000182,2]
[340878797,1729999832491,-9012.00182205,0.000182,2]
[340878798,1729999832500,-350.0,0.00019,2]
[340878799,1729999832509,-181.41,0.00019178,2]
[340878800,1729999832518,-400.0,0.00021,2]
[340878801,1729999832528,-450.0,0.00023,2]
[340878802,1729999832537,-500.0,0.00025,2]
[340878803,1729999832546,-550.0,0.00027,2]
[340878804,1729999832558,-600.0,0.00029,2]
[340878805,1729999832567,-2729.77764129,0.00031,2]
[340878806,1729999832577,-650.0,0.00031,2]
[340878807,1729999832586,-151.48,0.0003272,2]
[340878808,1729999832597,-700.0,0.00033,2]
[340878809,1729999832608,-150.0,0.00033071,7]
[340878810,1729999832618,-250.0,0.00033236,2]
[340878811,1729999832629,-483.64,0.00033366,2]
[340878812,1729999832640,-250.0,0.00033924,2]
[340878813,1729999832650,-250.0,0.00034116,120]
[340878814,1729999832756,-150.75,0.0003439,2]
[340878816,1729999832765,-750.0,0.00035,2]
[340878817,1729999832774,-483.64,0.00035629,2]
[340878818,1729999832783,-150.75,0.0003576,2]
[340878819,1729999832793,-170.96,0.00035877,120]
[340878820,1729999832803,-300.0,0.00035877,2]
[340878821,1729999832814,-200.0,0.00035927,2]
[340878822,1729999832823,-1000.0,0.00036524,2]
[340878823,1729999832833,-2499.90072995,0.00037175,2]
[340878824,1729999832843,-635.55048545,0.00037245,2]
[340878825,1729999832854,-615.68103165,0.00037344,2]
[340878826,1729999832864,-23900.0,0.00037345,2]
[340878827,1729999832874,-583.748,0.00037679,49]
[340878828,1729999832882,-1922.853,0.0003768,2]
[340878829,1729999832891,-3377.263,0.0003768,2]
[340878830,1729999832900,-812.0,0.0003768,2]
[340878831,1729999832909,-407.947,0.0003768,2]
[340878832,1729999832917,-1088.974,0.0003768,2]
[340878833,1729999832926,-1247.0,0.0003768,2]
[340878834,1729999832935,-565.552,0.0003768,2]
[340878835,1729999832944,-814.0,0.0003768,2]
[340878836,1729999832953,-456.816,0.0003768,2]
[340878837,1729999832962,-151.692,0.0003768,2]
[340878838,1729999832971,-153.174,0.0003768,2]
[340878839,1729999832980,-483.64,0.00037893,2]
[340878840,1729999832990,-840.0,0.00038037,2]
[340878841,1729999832999,-1000.0,0.00038054,2]
[340878842,1729999833009,-25516.92040573,0.00038446,2]
[340878843,1729999833018,-151.0,0.00038446,14]
[340878844,1729999833027,-151.0,0.00038446,14]
[340878845,1729999833036,-151.0,0.00038446,14]
[340878846,1729999833045,-158.460778,0.00038446,14]
[340878847,1729999833055,-151.0,0.00038446,7]
[340878848,1729999833064,-151.0,0.00038446,14]
[340878849,1729999833073,-151.0,0.00038446,14]
[340878850,1729999833083,-151.0,0.00038446,14]
[340878851,1729999833092,-151.0,0.00038446,14]
[340878852,1729999833101,-151.0,0.00038446,14]
[340878853,1729999833110,-245.775838,0.00038446,14]
[340878854,1729999833119,-245.775838,0.00038446,14]
[340878855,1729999833128,-182.825872,0.00038446,7]
[340878856,1729999833138,-182.825872,0.00038446,7]
[340878857,1729999833147,-151.0,0.00038446,14]
[340878858,1729999833156,-151.0,0.00038446,14]
[340878859,1729999833165,-345.332041,0.00038446,14]
[340878860,1729999833174,-345.332041,0.00038446,14]
[340878861,1729999833183,-151.0,0.00038446,14]
[340878862,1729999833192,-151.0,0.00038446,14]
[340878863,1729999833201,-151.0,0.00038446,14]
[340878864,1729999833211,-151.0,0.00038446,14]
[340878865,1729999833220,-151.0,0.00038446,14]
[340878866,1729999833229,-151.0,0.00038446,14]
[340878867,1729999833238,-4746.23350284,0.000389,15]
[340878868,1729999833248,-407.09224238,0.000389,2]
[340878869,1729999833257,-651.954834,0.0003899,14]
[340878870,1729999833266,-651.954834,0.0003899,14]
[340878871,1729999833277,-151.0,0.0003899,14]
[340878872,1729999833286,-151.0,0.0003899,14]
[340878873,1729999833295,-151.0,0.0003899,14]
[340878874,1729999833304,-151.0,0.0003899,14]
[340878875,1729999833314,-154.408739,0.0003899,14]
[340878876,1729999833323,-157.600822,0.0003899,14]
[340878877,1729999833332,-154.580812,0.0003899,14]
[340878878,1729999833342,-151.0,0.0003899,14]
[340878879,1729999833351,-225.137628,0.0003899,14]
[340878880,1729999833360,-225.137628,0.0003899,14]
[340878881,1729999833370,-151.0,0.0003899,14]
[340878882,1729999833379,-151.0,0.0003899,14]
[340878883,1729999833388,-153.263916,0.0003899,14]
[340878884,1729999833398,-154.70919,0.0003899,14]
[340878885,1729999833407,-246.331747,0.0003899,7]
[340878886,1729999833416,-151.0,0.0003899,14]
[340878887,1729999833425,-151.0,0.0003899,14]
[340878888,1729999833435,-151.0,0.0003899,14]
[340878889,1729999833444,-151.0,0.0003899,14]
[340878890,1729999833454,-151.0,0.0003899,14]
[340878891,1729999833463,-245.775838,0.0003899,14]
[340878892,1729999833472,-245.775838,0.0003899,14]
[340878893,1729999833482,-182.825872,0.0003899,7]
[340878894,1729999833491,-182.825872,0.0003899,7]
[340878895,1729999833500,-151.0,0.0003899,14]
[340878896,1729999833509,-151.0,0.0003899,14]
[340878897,1729999833520,-345.332041,0.0003899,14]
[340878898,1729999833530,-345.332041,0.0003899,14]
[340878899,1729999833540,-151.0,0.0003899,14]
[340878900,1729999833549,-151.0,0.0003899,14]
[340878901,1729999833560,-229.376105,0.0003899,14]
[340878902,1729999833569,-151.0,0.0003899,14]
[340878903,1729999833578,-3218.072444,0.0003899,14]
[340878904,1729999833587,-3218.072444,0.0003899,14]
[340878905,1729999833596,-279.52,0.0003899,2]
[340878906,1729999833607,-245.94863888,0.0003899,2]
[340878907,1729999833618,-151.0,0.0003899,14]
[340878908,1729999833628,-27146.95015061,0.00039,2]
[340878909,1729999833745,-812.9464343,0.00039,2]
[340878910,1729999833757,-95638.02825768,0.00039,2]
[340878911,1729999833768,-920.06431593,0.00039,2]
[340878912,1729999833780,-18850.97946058,0.00039,2]
[340878913,1729999833791,-218916.8102456,0.00039,2]
[340878914,1729999833802,-5484.94931223,0.00039,2]
[340878915,1729999838301,-5898.0,0.0003768,2]
[340878916,1729999838310,-151.0,0.00038446,14]
[340878917,1729999838320,-153.769638,0.00038446,14]
[340878918,1729999838331,-282.291228,0.0003899,14]
[340878919,1729999838340,-1686.95772342,0.00039,2]
[340878920,1729999838444,-516.07115909,0.00039,2]
[340878923,1729999840391,-2170.88474938,0.00039,2]
[340878924,1729999840403,-1895.093321,0.00039,2]
[340878925,1729999840414,-662.70634916,0.00039,2]
[340878926,1729999840425,-2620.95628409,0.00039,2]
[340878927,1729999840436,-4465.35320515,0.00039,2]
[340878928,1729999840447,-807.664508,0.00039,2]
[340878929,1729999840751,-756.45211275,0.0003768,2]
[340878930,1729999840764,-396.54788725,0.0003768,2]
[340878931,1729999840773,-455.68107141,0.00039,2]
[340878932,1729999840785,-2144.15986426,0.00039,2]
[340878933,1729999840796,-630.25841339,0.00039,2]
[340878934,1729999840808,-2954.1894928,0.00039,2]
[340878935,1729999840819,-550.50093868,0.00039,2]
[340878936,1729999840830,-1286.62595236,0.00039,2]
[340878937,1729999840841,-992.97064484,0.00039,2]
[340878938,1729999840852,-335.201548,0.00039,2]
[340878939,1729999840863,-2537.03952318,0.00039,2]
[340878940,1729999840874,-1593.75750387,0.00039,2]
[340878941,1729999840905,-3790.32047494,0.00039,2]
[340878950,1729999843455,-82474.9553269,0.00039,2]
[340878959,1729999846433,-175.0,0.00024,2]
[340878960,1729999846443,-12471.19455618,0.0003768,2]
[340878961,1729999846454,-1090.80544382,0.0003768,2]
[340878962,1729999846464,-737.6753345,0.00039,2]
[340878963,1729999846582,-1168.59588778,0.00039,2]
[340878978,1730001032509,-154.38,0.00015342,2]
[340878980,1730001032519,-160.98,0.00015342,2]
[340878982,1730001032528,-500.0,0.00019973,2]
[340878984,1730001032538,-150.0,0.00019999,2]
[340878986,1730001032547,-3351.52,0.0002,2]
[340878987,1730001032560,-1450.0,0.0002,2]
[340878988,1730001032783,-35212.72,0.0002,2]
[340878989,1730001032793,-159.909388,0.0002,2]
[340878990,1730001032803,-322.26940005,0.0002,2]
[340878991,1730001032812,-175.0,0.00025,2]
[340878992,1730001032822,-152.0,0.00035282,3]
[340878993,1730001032831,-411.09,0.00036426,2]
[340878994,1730001032841,-466.998,0.00037379,48]
[340878995,1730001032850,-814.0,0.0003738,2]
[340878996,1730001032860,-1247.0,0.0003738,2]
[340878997,1730001032869,-450.0,0.0003738,2]
[340878998,1730001032878,-561.0,0.0003738,2]
[340878999,1730001032888,-563.291,0.0003738,2]
[340879000,1730001032897,-1980.0,0.0003738,2]
[340879001,1730001032907,-1913.0,0.0003738,2]
[340879002,1730001032916,-3365.0,0.0003738,2]
[340879003,1730001032925,-811.0,0.0003738,2]
[340879004,1730001032934,-150.0,0.0003738,2]
[340879005,1730001032943,-220.0,0.0003738,2]
[340879006,1730001032953,-150.0,0.0003738,2]
[340879007,1730001032962,-272.941,0.0003738,2]
[340879008,1730001032975,-264.337,0.0003738,2]
[340879009,1730001032984,-200.0,0.0003738,2]
[340879010,1730001032993,-5898.0,0.0003738,2]
[340879011,1730001033003,-150.0,0.0003738,2]
[340879012,1730001033014,-836.621,0.0003738,2]
[340879013,1730001033024,-156.0,0.0003738,2]
[340879014,1730001033033,-250.0,0.0003738,2]
[340879015,1730001033043,-164.36,0.0003738,2]
[340879016,1730001033053,-281.45,0.0003738,2]
[340879018,1730001033062,-13562.0,0.0003738,2]
[340879020,1730001033072,-152.0,0.00037705,4]
[340879022,1730001033081,-170.96,0.00038136,120]
[340879024,1730001033090,-250.0,0.00038146,120]
[340879025,1730001033099,-2174.27,0.00038171,2]
[340879027,1730001033108,-150.0,0.00038379,7]
[340879029,1730001033117,-151.0,0.00038446,14]
[340879031,1730001033127,-424.14425734,0.00038655,2]
[340879033,1730001033136,-411.09,0.0003869,2]
[340879035,1730001033145,-1000.0,0.00038964,2]
[340879037,1730001033155,-151.0,0.0003899,14]
[340879039,1730001033164,-151.0,0.0003899,14]
[340879041,1730001033173,-1702.11126598,0.00039,2]
[340879043,1730001033182,-685.335768,0.00039,14]
[340879045,1730001033191,-685.335768,0.00039,14]
[340879047,1730001033202,-154.976213,0.00039,14]
[340879049,1730001033211,-151.0,0.00039,14]
[340879051,1730001033220,-151.0,0.00039,14]
[340879053,1730001033229,-182.825872,0.00039,7]
[340879055,1730001033239,-182.825872,0.00039,7]
[340879057,1730001033249,-151.0,0.00039,14]
[340879059,1730001033259,-172.05989752,0.00039,14]
[340879061,1730001033268,-151.0,0.00039,14]
[340879063,1730001033278,-161.316214,0.00039,14]
[340879065,1730001033287,-151.0,0.00039,14]
[340879067,1730001033296,-151.0,0.00039149,14]
[340879069,1730001033306,-167.0,0.00039562,2]
[340879071,1730001033315,-151.0,0.00039621,14]
[340879072,1730001033324,-151.0,0.00039621,14]
[340879075,1730001033334,-182.825872,0.00039621,7]
[340879076,1730001033343,-182.825872,0.00039621,7]
[340879078,1730001033352,-151.0,0.00039621,14]
[340879079,1730001033362,-151.0,0.00039621,14]
[340879080,1730001033371,-154.759877,0.00039711,14]
[340879081,1730001033380,-151.0,0.00039768,14]
[340879082,1730001033389,-151.0,0.00039768,14]
[340879083,1730001033399,-182.825872,0.00039768,7]
[340879084,1730001033408,-182.825872,0.00039768,7]
[340879085,1730001033417,-151.0,0.00039768,14]
[340879086,1730001033427,-151.0,0.00039768,14]
[340879087,1730001033436,-152.0,0.00040129,5]
[340879088,1730001033445,-4271.61015252,0.0004018,15]
[340879089,1730001033454,-3527.0307,0.0004018,2]
[340879090,1730001033464,-502.3229604,0.00040273,5]
[340879091,1730001033473,-156.08564734,0.0004028,28]
[340879092,1730001033482,-74684.4767,0.0004028,2]
[340879093,1730001033492,-6916.8775,0.0004028,2]
[340879094,1730001033503,-66964.4918859,0.0004037,9]
[340879095,1730001033512,-500.0,0.00040373,5]
[340879096,1730001033521,-151.0,0.0004038,14]
[340879097,1730001033530,-151.0,0.0004038,14]
[340879098,1730001033540,-151.0,0.0004038,14]
[340879099,1730001033549,-151.0,0.0004038,14]
[340879100,1730001033558,-151.0,0.0004038,14]
[340879101,1730001033568,-152.933854,0.0004038,14]
[340879102,1730001033577,-151.0,0.0004038,14]
[340879103,1730001033586,-151.0,0.0004038,14]
[340879104,1730001033595,-151.0,0.0004038,2]
[340879105,1730001033605,-151.0,0.0004038,2]
[340879106,1730001033614,-151.0,0.0004038,14]
[340879107,1730001033623,-151.0,0.0004038,14]
[340879108,1730001033632,-217.63304,0.0004038,14]
[340879109,1730001033642,-217.63304,0.0004038,14]
[340879110,1730001033651,-304.332042,0.0004038,14]
[340879111,1730001033661,-304.332042,0.0004038,14]
[340879112,1730001033670,-423.947733,0.0004038,14]
[340879113,1730001033680,-423.947733,0.0004038,14]
[340879114,1730001033689,-151.0,0.0004038,14]
[340879115,1730001033698,-151.0,0.0004038,14]
[340879116,1730001033707,-276.265633,0.0004038,14]
[340879117,1730001033717,-276.265633,0.0004038,14]
[340879118,1730001033726,-234.317708,0.0004038,14]
[340879119,1730001033735,-234.317708,0.0004038,14]
[340879120,1730001033744,-151.0,0.0004038,14]
[340879121,1730001033754,-2896.2652,0.0004038,14]
[340879122,1730001033763,-2896.2652,0.0004038,14]
[340879123,1730001033772,-434.059793,0.0004038,14]
[340879124,1730001033781,-245000.0,0.0004038,2]
[340879125,1730001033791,-814.0,0.0004038,2]
[340879126,1730001033800,-1247.0,0.0004038,2]
[340879127,1730001033809,-450.0,0.0004038,2]
[340879128,1730001033818,-561.0,0.0004038,2]
[340879129,1730001033828,-556.0,0.0004038,2]
[340879130,1730001033837,-1072.983,0.0004038,2]
[340879131,1730001033846,-1913.0,0.0004038,2]
[340879132,1730001033855,-3365.0,0.0004038,2]
[340879133,1730001033864,-811.0,0.0004038,2]
[340879134,1730001033873,-150.0,0.0004038,2]
[340879135,1730001033882,-150.0,0.0004038,2]
[340879136,1730001033891,-150.0,0.0004038,2]
[340879137,1730001033901,-5898.0,0.0004038,2]
[340879138,1730001033910,-150.0,0.0004038,2]
[340879139,1730001033919,-150.0,0.0004038,2]
[340879140,1730001033929,-150.0,0.0004038,2]
[340879141,1730001033938,-13562.0,0.0004038,2]
[340879142,1730001033949,-500.0,0.00040387,2]
[340879143,1730001033958,-8370.56148574,0.0004046,9]
[340879144,1730001033968,-151.0,0.0004047,14]
[340879145,1730001033980,-177.675971,0.0004047,14]
[340879146,1730001033991,-182.825872,0.0004047,7]
[340879147,1730001034004,-182.825872,0.0004047,7]
[340879148,1730001034013,-151.0,0.0004047,14]
[340879149,1730001034022,-151.0,0.0004047,14]
[340879150,1730001034032,-151.0,0.00040473,14]
[340879151,1730001034042,-151.0,0.00040473,14]
[340879152,1730001034051,-151.0,0.00040473,14]
[340879153,1730001034060,-151.0,0.00040473,14]
[340879154,1730001034069,-151.0,0.00040473,14]
[340879155,1730001034078,-196.620671,0.00040473,14]
[340879156,1730001034088,-196.620671,0.00040473,14]
[340879157,1730001034097,-151.0,0.00040473,14]
[340879158,1730001034107,-151.0,0.00040473,14]
[340879159,1730001034117,-151.0,0.00040473,14]
[340879160,1730001034126,-151.0,0.00040473,14]
[340879161,1730001034230,-225.759538,0.00040473,14]
[340879162,1730001034240,-1000.0,0.00040477,2]
[340879163,1730001034250,-1000.0,0.00040477,2]
[340879164,1730001034259,-1000.0,0.00040477,2]